Cogmind - Beta 14 @@@ ROGUE MODE // 2024.10.05 @ 15:15:00 Player: Carpathian Result: Destroyed by G-34 Mercenary with Small Laser Performance ------------- Evolutions (1) 500 Regions Visited (3) 600 Robots Destroyed (38) 190 Value Destroyed (1107) 1107 Prototype IDs (1) 20 Alien Tech Used (0) 0 Bonus (25) 25 TOTAL SCORE: 2442 Bonus ------- Follower Combat Kills 25 Cogmind --------- Core Integrity 0/400 Matter 300/300 Energy 250/250 System Corruption 5% Temperature Cool (6) Movement Walking (260) Ox2 Location -9/Materials Parts ------- > --- POWER (1) -------- Ion Engine > --- PROPULSION (2) --- Improved Aluminum Leg > --- UTILITY (4) ------ Large Storage Unit Sensor Array Targeting Computer > --- WEAPON (2) ------- Advanced Beam Cannon > --- INVENTORY (15) --- Ion Engine Light Ion Engine Aluminum Leg Small Laser Mining Claw Katana Peak State ------------ > --- POWER ------------ Light Nuclear Core > --- PROPULSION ------- Aluminum Leg Carbon-fiber Leg > --- UTILITY ---------- Large Storage Unit Sensor Array Core Shielding Light Armor Plating > --- WEAPON ----------- Beam Rifle Beam Cannon > --- INVENTORY -------- Ion Engine Light Assault Rifle Light Assault Rifle Mining Claw [Rating: 14] Favorites ----------- Power Ion Engine Engine Ion Engine Power Core Light Nuclear Core Propulsion Light Treads Treads Light Treads Leg Aluminum Leg Utility Sensor Array Device Sensor Array Storage Large Storage Unit Processor Targeting Computer Protection Core Shielding Weapon Light Assault Rifle Energy Gun Beam Rifle Energy Cannon Beam Cannon Ballistic Gun Light Assault Rifle Ballistic Cannon Light Cannon Build | -11 -10 -10 -9 ------- Run | Yrd Mat Min Mat Slots Evolved 2 | . . . 2 Power . | . . . . Propulsion . | . . . . Utility 2 | . . . 2 Weapon . | . . . . Parts Attached 26 | 6 4 . 16 Power 4 | 1 1 . 2 Engine 3 | 1 1 . 1 Core 1 | . . . 1 Reactor . | . . . . Propulsion 9 | 2 . . 7 Treads 4 | 2 . . 2 Leg 5 | . . . 5 Wheel . | . . . . Hover . | . . . . Flight . | . . . . Utility 6 | 1 2 . 3 Device 1 | . 1 . . Storage 2 | 1 1 . . Processor 1 | . . . 1 Hackware . | . . . . Protection 2 | . . . 2 Artifact . | . . . . Weapon 7 | 2 1 . 4 Energy Gun 1 | . . . 1 Energy Cannon 2 | . . . 2 Ballistic Gun 3 | 2 . . 1 Ballistic Cannon 1 | . 1 . . Launcher . | . . . . Special Weapon . | . . . . Impact Weapon . | . . . . Slashing Weapon . | . . . . Piercing Weapon . | . . . . Special Melee Weapon . | . . . . Unidentified Prototypes 1 | . . . 1 Parts Lost 7 | . . . 7 Power 1 | . . . 1 Propulsion 2 | . . . 2 Utility 2 | . . . 2 Weapon 2 | . . . 2 Highest Loss Streak 3 | . . . 3 To Critical Strikes 1 | . . . 1 Average Slot Usage (%) 92 | . 99 100 83 Engine 9 | . 14 14 4 Core 2 | . . . 5 Treads 19 | . 28 28 7 Leg 5 | . . . 12 Device 12 | . 13 14 11 Storage 12 | . 14 14 11 Protection 4 | . . . 9 Energy Gun 2 | . . . 5 Energy Cannon 3 | . . . 8 Ballistic Gun 11 | . 20 14 3 Ballistic Cannon 7 | . 7 14 3 Peak Build Rating 14 | 6 7 8 14 Average Rating 8 | 4 6 7 9 On Entrance 5 | . 6 7 8 Naked Turns . | . . . . Heaviest Build 36 | 12 30 30 36 Greatest Support 40 | 40 40 40 40 Greatest Overweight (x) 8 | . . . 8 Average Overweight (x) . | . . . . Largest Inventory Capacity 15 | 8 15 15 15 Average Capacity 12 | 7 8 15 15 Most Carried 9 | 3 7 9 8 Average Carried 5 | 1 4 8 5 Final Capacity 15 | 8 15 15 15 Final Carried 9 | 3 7 9 6 Class Distribution -------------------- 83% | Mutant 16% | Scavenger-Mutant Dominant Class ---------------- Mutant | -10/Materials Mutant | -10/Mines Mutant | -9/Materials Resources | -11 -10 -10 -9 ----------- Run | Yrd Mat Min Mat Matter Collected 681 | 210 126 85 260 Remotely . | . . . . Salvage Created 1564 | . 206 152 1206 Parts 90 | . 13 4 73 Haulers Intercepted 1 | . . . 1 Recyclers Shooed 2 | . 1 . 1 Parts Field Recycled . | . . . . Retrieved Matter . | . . . . Parts Self-Destructed . | . . . . Prevented . | . . . . Kills | -11 -10 -10 -9 ------- Run | Yrd Mat Min Mat Combat Hostiles Destroyed 30 | . 3 5 22 Guns 7 | . 1 1 5 Cannons 22 | . 2 4 16 Classes Destroyed 8 | . 4 . 4 Worker 1 | . 1 . . Hauler 1 | . . . 1 Recycler 5 | . 1 . 4 Watcher 1 | . 1 . . Swarmer 4 | . . . 4 Grunt 22 | . 3 5 14 Duelist 1 | . . . 1 Sentry 3 | . . . 3 Best Kill Streak 7 | . 5 4 7 Combat Bots Only 6 | . 2 4 6 Max Kills in Single Turn 1 | . 1 1 1 Gunslinging . | . . . . Exploded . | . . . . Melee . | . . . . Uniques/NPCs Destroyed . | . . . . Combat | -11 -10 -10 -9 -------- Run | Yrd Mat Min Mat Hostile Shots Fired 164 | . 19 24 121 Missed 45 | . 3 10 32 Damage Taken 1799 | . 241 175 1383 Core 491 | . 48 35 408 Absorbed by Shields . | . . . . Redirected to Shielding 21 | . . . 21 Core Remaining (%) 83 | 100 . 66 . Volleys Fired 107 | . 16 13 78 Largest 2 | . 2 2 2 Hottest 116 | . 55 55 116 Shots Fired 182 | . 32 26 124 Gun 83 | . 24 13 46 Cannon 99 | . 8 13 78 Launcher . | . . . . Special . | . . . . Kinetic 99 | . 32 26 41 Thermal 83 | . . . 83 Explosive . | . . . . Electromagnetic . | . . . . Robot Hit Streak 11 | . 9 7 11 Robot Miss Streak 3 | . 1 1 3 Penetration Max . | . . . . Secondary Targets . | . . . . Shots Hit Robots 129 | . 26 22 81 Core Hits 56 | . 12 11 33 Critical Kills . | . . . . Critical Parts Destroyed . | . . . . Critical Strikes 4 | . . 1 3 Burn 3 | . . . 3 Blast 1 | . . 1 . Melee Attacks . | . . . . Impact . | . . . . Slashing . | . . . . Piercing . | . . . . Sneak Attacks . | . . . . Combat Hostiles . | . . . . Follow-up Attacks . | . . . . Damage Inflicted 1898 | . 310 304 1284 Guns 607 | . 172 91 344 Cannons 1291 | . 138 213 940 Explosions . | . . . . Melee . | . . . . Ramming . | . . . . Kinetic 928 | . 310 304 314 Thermal 970 | . . . 970 Explosive . | . . . . Electromagnetic . | . . . . Impact . | . . . . Slashing . | . . . . Piercing . | . . . . Highest Corruption 5 | . . . 5 Average Corruption 5 | . . . 5 Corruption Purged . | . . . . Corruption Blocked . | . . . . Effects 10 | . . . 10 Message Errors 1 | . . . 1 Matter Fused 3 | . . . 3 Heat Flow Errors 2 | . . . 2 Parts Rejected 1 | . . . 1 Data Loss (major) 1 | . . . 1 Misfires 1 | . . . 1 Weapon Failures 1 | . . . 1 Overload Shots . | . . . . Overflow Damage 13 | . . . 13 Projectiles 13 | . . . 13 Explosions . | . . . . Melee . | . . . . Knockbacks 11 | . 3 4 4 Impact . | . . . . Kinetic 11 | . 3 4 4 Secondary . | . . . . Self-Inflicted Damage . | . . . . Shots . | . . . . Rammed . | . . . . Targets Rammed . | . . . . Kicked . | . . . . Crushed . | . . . . Highest Temperature 475 | . 60 72 475 Average Temperature 125 | . 20 30 151 Received Heat Transfer 594 | . 153 102 339 Effects 5 | . . . 5 Shutdowns 3 | . . . 3 Interference 1 | . . . 1 Short Circuit 1 | . . . 1 Siege Activations . | . . . . Robots Corrupted . | . . . . Combat Hostiles . | . . . . Parts Fried . | . . . . Impact Corruptions . | . . . . Robots Melted 1 | . . . 1 Combat Hostiles 1 | . . . 1 Parts Melted 10 | . . . 10 Heat Transferred 2294 | . . . 2294 Parts Sabotaged . | . . . . Parts Stolen . | . . . . Parts Stripped . | . . . . Power Chain Reactions . | . . . . Alert | -11 -10 -10 -9 ------- Run | Yrd Mat Min Mat Peak Influence 360 | . 137 136 360 Initial . | . . . . Average 110 | . 53 58 205 Maximum Alert Level 1 | . . . 1 Low Security (%) 76 | 100 100 100 38 Level 1 23 | . . . 61 Level 2 . | . . . . Level 3 . | . . . . Level 4 . | . . . . Level 5 . | . . . . High Security . | . . . . Max Security . | . . . . Squads Dispatched 3 | . . 1 2 Investigation . | . . . . Extermination . | . . . . Reinforcement 1 | . . . 1 Assault 2 | . . 1 1 Garrison . | . . . . Intercept . | . . . . Searches Triggered . | . . . . Construction Impeded . | . . . . Haulers Reinforced . | . . . . Active Scanning Responses . | . . . . Cargo Convoy Interrupts . | . . . . Stealth | -11 -10 -10 -9 --------- Run | Yrd Mat Min Mat Distress Signals 2 | . . . 2 Communications Jammed . | . . . . Distress Signals . | . . . . Times Spotted 46 | . 6 9 31 Peak Tracking Total 6 | . 3 4 6 Tactical Retreats 2 | . . 1 1 Traps | -11 -10 -10 -9 ------- Run | Yrd Mat Min Mat Traps Triggered 1 | . . . 1 Indirectly . | . . . . Trap Hack Attempts . | . . . . Triggered . | . . . . Disarmed . | . . . . Reprogrammed 3 | . 3 . . Reused 1 | . 1 . . Traps Extracted . | . . . . Installed . | . . . . Triggered 1 | . 1 . . Machines | -11 -10 -10 -9 ---------- Run | Yrd Mat Min Mat Machines Disabled 1 | . . . 1 Max in Single Turn 1 | . . . 1 Machines Repaired . | . . . . Machines Dismantled . | . . . . Machines Sabotaged . | . . . . Overloaded Fab Kills . | . . . . Hacking | -11 -10 -10 -9 --------- Run | Yrd Mat Min Mat Machines Accessed 2 | . 1 . 1 Terminals 2 | . 1 . 1 Fabricators . | . . . . Repair Stations . | . . . . Recycling Units . | . . . . Scanalyzers . | . . . . Garrison Access . | . . . . Total Hacks 2 | . 1 . 1 Successful 2 | . 1 . 1 Failed . | . . . . Catastrophic . | . . . . Database Lockouts . | . . . . Manual . | . . . . Terminals 2 | . 1 . 1 Fabricators . | . . . . Repair Stations . | . . . . Recycling Units . | . . . . Scanalyzers . | . . . . Garrison Access . | . . . . Terminal Hacks 2 | . 1 . 1 Record 1 | . . . 1 Reprogram Traps 1 | . 1 . . Fabricator Hacks . | . . . . Repair Station Hacks . | . . . . Recycling Unit Hacks . | . . . . Scanalyzer . | . . . . Garrison Access Hacks . | . . . . Unauthorized Hacks . | . . . . Terminals . | . . . . Fabricators . | . . . . Repair Stations . | . . . . Recycling Units . | . . . . Scanalyzers . | . . . . Garrison Access . | . . . . Data Cores Recovered . | . . . . Used . | . . . . Hacking Detections . | . . . . Full Trace Events . | . . . . Feedback Events . | . . . . Feedback Blocked . | . . . . Robot Schematics Acquired . | . . . . Robots Built . | . . . . Authchips . | . . . . Time . | . . . . Total Robot Build Rating . | . . . . Part Schematics Acquired . | . . . . Parts Built . | . . . . Authchips . | . . . . Time . | . . . . Total Part Build Rating . | . . . . Parts Repaired . | . . . . Time . | . . . . Parts Recycled . | . . . . Recycled Matter . | . . . . Retrieved Matter . | . . . . Retrieved Components . | . . . . Parts Scanalyzed . | . . . . Part Schematics Acquired . | . . . . Parts Damaged . | . . . . Bothacking | -11 -10 -10 -9 ------------ Run | Yrd Mat Min Mat Used RIF Installer . | . . . . Robots Hacked . | . . . . Non-combat . | . . . . Combat . | . . . . Robot Hacks Applied . | . . . . Relay Couplers Released . | . . . . Fabnet Peak Effective % . | . . . . Robots Rewired . | . . . . Allies Hacked . | . . . . Hacks Repelled . | . . . . Allies | -11 -10 -10 -9 -------- Run | Yrd Mat Min Mat Total Allies 1 | . . 1 . Largest Group 1 | . . 1 . Highest-Rated Group 31 | . . 31 . Highest-Rated Ally 31 | . . 31 . Total Orders . | . . . . Ally Attacks 13 | . . 13 . Total Damage 190 | . . 190 . Kills 1 | . . 1 . Allies Corrupted . | . . . . Allies Melted . | . . . . Intel | -11 -10 -10 -9 ------- Run | Yrd Mat Min Mat Robot Analysis Total . | . . . . Derelict Logs Recovered 2 | . . 2 . Drone Launches . | . . . . Drone Recoveries . | . . . . Exploration | -11 -10 -10 -9 ------------- Run | Yrd Mat Min Mat Turns Passed 1798 | 131 488 478 701 Spaces Moved 853 | 83 261 262 247 Core 15 | 14 . . 1 Treads 690 | 69 261 262 98 Legs 148 | . . . 148 Wheels . | . . . . Hover . | . . . . Flight . | . . . . Fastest Speed 50 | 50 160 160 160 Average Speed 165 | 141 160 160 185 Slowest Speed 450 | 160 160 160 450 Overloaded Moves . | . . . . Propulsion Burnouts . | . . . . Robots Hopped . | . . . . Cave-ins Triggered 1 | . . . 1 Exploration Rate (%) 29 | 5 43 41 27 Regions Visited 3 Branch Regions 1 Pre-discovered Areas 1 | . . 1 . Known Exits Taken . | . . . . Unknown Exits Taken 3 | 1 1 1 . Scrap Searched . | . . . . Spaces Dug . | . . . . Terrain Destroyed . | . . . . Melee . | . . . . Projectile . | . . . . AOE . | . . . . Terrain Rammed . | . . . . Walls Destroyed . | . . . . Machines Disabled . | . . . . Actions | -11 -10 -10 -9 --------- Run | Yrd Mat Min Mat Total 1070 | 97 304 298 371 Wait 42 | . 15 20 7 Move 850 | 82 260 261 247 Hop . | . . . . Pick Up 33 | 9 7 3 14 Fast Attach . | . . . . Attach 15 | 6 1 . 8 Detach . | . . . . Swap 11 | . 3 . 8 Drop 12 | . 2 1 9 Fire 107 | . 16 13 78 Melee . | . . . . Ram . | . . . . Kick . | . . . . Crush . | . . . . Escape Stasis . | . . . . Rewire . | . . . . Trap . | . . . . Miscellaneous . | . . . . Route ------- -11/Scrapyard -10/Materials -10/Mines -9/Materials (discovered 1 exit: [*Min]) History --------- Turn | Location | Event 8 | -11/Scrapyard | Discovered new exit (range 15) 132 | -11/Scrapyard | Entered Materials 310 | -10/Materials | Build established: Mutant 566 | -10/Materials | Discovered new exit (range 8) 620 | -10/Materials | Entered Mines 724 | -10/Mines | Met a Derelict testing a Signal Generator 744 | -10/Mines | Learned Materials terminal intel 752 | -10/Mines | Found Signal Generator 1043 | -10/Mines | Received a Rocket Launcher from a helpful Derelict 1084 | -10/Mines | Discovered new exit (range 9) 1098 | -10/Mines | Entered Materials 1098 | -9/Materials | Evolved 2 slots: Utility x2 1099 | -9/Materials | Loaded intel: 12 terminal locations 1401 | -9/Materials | Crushed by falling debris 1643 | -9/Materials | Discovered new exit (range 16) 1660 | -9/Materials | Core integrity fell below 50% 1708 | -9/Materials | Lost 3 parts (1p1u1w) 1729 | -9/Materials | Core integrity fell below 20% 1799 | -9/Materials | Destroyed by G-34 Mercenary with Small Laser Last Messages --------------- 01770_ R-06 Scavenger collects Tractor Beam. 01771_ K-01 Serf collects debris. 01771_ R-06 Scavenger destroyed. 01773_ R-06 Scavenger collects Tractor Beam. 01774_ K-01 Serf collects debris. 01776_ R-06 Scavenger collects Com. Wheel. 01777_ K-01 Serf cleans the Recycling Unit. 01779_ K-01 Serf collects debris. 01779_ Acquired Katana. 01781_ K-01 Serf collects debris. 01786_ System corrupted: FCS attempts to trigger Adv. Beam Cannon. 01786_ System corrupted: Adv. Beam Cannon misfires. 01786_ Destroyed Sml. Matter Pod. 01787_ R-06 Scavenger collects Com. Wheel. 01789_ K-01 Serf collects debris. 01793_ R-06 Scavenger inserts Tractor Beam into recycling unit. 01794_ K-01 Serf collects debris. 01796_ R-06 Scavenger inserts Tractor Beam into recycling unit. 01797_ Recycling unit begins recycling process. 01797_ R-06 Scavenger inserts Com. Wheel into recycling unit. Map ----- +----------------------------------------------------+ | ??????????# ## %% [ | | ?????????????# ##########/########### % = | | ????????????####+#####?#| % [ #???????# !]*= | | ????????????# T #?# """ #???????########## | | ????????????# """### """ #????????????????? | | ????????????# = """## """ #????????????????# | | ????????????# """### #????????????????# | | ????????????# #?# """#????????????????# | | ????????????# ! """#?# R"#????????????????? | | ????????????# """#?# """#????????????????? | | ????????????# """#?# #????????????????? | | ????????????# ############????????????????? | | ????????????#######+##"""#####???????????????????? | | ??????????????????#g##"Y"#"""#???########????????? | | ?????????????????## ##" "#"Y"#### ##???????? | | ?????????????????# g r ??????? | | ?????????????????# k < ??????? | | ?????????????????# " ??????? | | ?????????????????# / % !! # #????????? | | ??????????? ##### %!!! #???"!" #????????? | | ??????????T % % % !!! #??????????????T?? | | ?????????"" % k % ###??????????????? | | ?????????? % ???????? | | ??????????? !########## ###+######+####????????? | | ??????????????????????#% #?? ??????????????????? | | ?????????????????????%+ @#??"" ?????????????????? | | ????????????????????" # +??"" ????????????????? | | ??????????????????""" + #???" #???????????????? | | ??????????????????""" ### #???? #???????????????? | | ???????????????????" ??# #?????]#???????????????? | | ""??????????????????"???# #??????#???????????????? | | T"??????????????????"???# #??????????????????????? | | ?"??????????????????????# #??????????????????????? | | ???????????????????????? +??????????????????????? | | ????????????????????????##???????????????????????? | | ?????????????????????????????????????????????????? | | ?????????????????????????????????????????????????? | | ?????????????????????????????????????????????????? | | ?????????????????????????????????????????????????? | | ?????????????????????????????????T???????????????? | | ?????????????????????????????????????????????????? | | ?????????????????????????????????????????????????? | | ?????????????????????????????????????????????????? | | ?????????????????????????????????????????????????? | | ?????????????????????????????????????????????????? | | ?????????????????????????????????????????????????? | | ?????????????????????????????????????????????????? | | ?????????????????????????????????????????????????? | | ?????????????????????????????????????????????????? | | ?????????????????????????????????????????????????? | +----------------------------------------------------+ Best States ------------- Heat Dissipation 28 Energy Generation 14 Energy Capacity 250 Matter Stores 300 Matter Capacity 300 Sight Range 16 Robot Scan Range 14 Terrain Scan Density 10 Armor Coverage 150 Core Shielding 20 Evasion (%) 50 Targeting Accuracy 5 Recoil Reduction 2 Item Schematics ----------------- None Robot Schematics ------------------ None Fabricated ------------ Nothing Alien Tech Used ----------------- None Achievements -------------- None Challenges ------------ None Game ------ Seed DamperEncryptedMembrane Manual? 0 Play Time 00:12:07 Cumulative 25.6 hours Start 2024.10.05 @ 15:04:01 End 2024.10.05 @ 15:15:00 Sessions 1 Manual Loads 0 Difficulty Rogue Special Mode None Game No. 140 Rogue 140 Adventurer 0 Explorer 0 Win Type - Total 0 Types 0/0/0/0/0/0/0/0/0 Lore% 5 Gallery% 23 Achievement% 17 Wizard Run 0 Options --------- Layout 0 ASCII 0 Keyboard 0 Movement Arrows Keybinds 0 Fullscreen 2 Font 24/Cog Map View 76x50 Zoom Use 0% Tactical HUD 1 Map Filters NONE Filters NONE Steam 1 RUN: e5b743c7-57fe-4832-9211-a53feb709cc9